[Event "Torneo Nuevo Centro. Jornada 8"]
[Site "Chess.com"]
[Date "2020.08.07"]
[Round "8"]
[White "Pardo Ruiz, Carlos"]
[Black "Bercaru, Vlad Ionut"]
[Result "1-0"]
[WhiteElo "1696"]
[BlackElo "1809"]
[TimeControl "180+2"]
[EndTime "12:03:34 PDT"]
[Termination "Victoria de Carlitoscarlsen por tiempo"]

1. e4 {[%clk 0:03:01.9]} 1... c5 {[%clk 0:02:59.8]} 2. Nf3 {[%clk 0:03:01.7]}
2... Nc6 {[%clk 0:02:59.4]} 3. d4 {[%clk 0:03:02.4]} 3... cxd4 {[%clk
0:03:01.3]} 4. Nxd4 {[%clk 0:03:03.7]} 4... Nf6 {[%clk 0:03:02.4]} 5. Nc3 {[%clk
0:03:03.4]} 5... e5 {[%clk 0:03:02.9]} 6. Ndb5 {[%clk 0:03:02.8]} 6... d6 {[%clk
0:03:03.8]} 7. Nd5 {[%clk 0:03:03.2]} 7... Nxd5 {[%clk 0:03:05.2]} 8. exd5
{[%clk 0:03:05.1]} 8... Ne7 {[%clk 0:03:05.8]} 9. c4 {[%clk 0:03:06.2]} 9... Ng6
{[%clk 0:02:50.7]} 10. Be2 {[%clk 0:03:04.5]} 10... Bd7 {[%clk 0:02:49.2]} 11.
Nc3 {[%clk 0:03:04.4]} 11... Be7 {[%clk 0:02:47.8]} 12. O-O {[%clk 0:03:04]}
12... O-O {[%clk 0:02:46.6]} 13. Kh1 {[%clk 0:03:01.9]} 13... f5 {[%clk
0:02:43.7]} 14. Be3 {[%clk 0:02:52.8]} 14... f4 {[%clk 0:02:40.3]} 15. Bd2
{[%clk 0:02:51.2]} 15... Bf5 {[%clk 0:02:32.8]} 16. f3 {[%clk 0:02:47.5]} 16...
Bh4 {[%clk 0:02:24.5]} 17. Ne4 {[%clk 0:02:41.4]} 17... Ne7 {[%clk 0:02:14.6]}
18. Bb4 {[%clk 0:02:34]} 18... Bxe4 {[%clk 0:02:09.1]} 19. fxe4 {[%clk
0:02:35.9]} 19... a5 {[%clk 0:02:06]} 20. Bd2 {[%clk 0:02:27.7]} 20... Rf6
{[%clk 0:01:56.5]} 21. Bg4 {[%clk 0:02:21.9]} 21... Kh8 {[%clk 0:01:46]} 22. Be1
{[%clk 0:02:09.1]} 22... Bxe1 {[%clk 0:01:42.3]} 23. Qxe1 {[%clk 0:02:11]} 23...
Rg6 {[%clk 0:01:41.2]} 24. Bh3 {[%clk 0:02:08.9]} 24... Qc7 {[%clk 0:01:34.9]}
25. b3 {[%clk 0:02:08]} 25... Rh6 {[%clk 0:01:33.5]} 26. Rc1 {[%clk 0:02:02.8]}
26... Qc5 {[%clk 0:01:29.1]} 27. Qf2 {[%clk 0:01:57.9]} 27... b6 {[%clk
0:01:19.7]} 28. Qxc5 {[%clk 0:01:54.9]} 28... bxc5 {[%clk 0:01:21.6]} 29. Bd7
{[%clk 0:01:47.4]} 29... Ra7 {[%clk 0:01:16.5]} 30. Be6 {[%clk 0:01:46.8]} 30...
Ng8 {[%clk 0:01:05.6]} 31. g3 {[%clk 0:01:31.7]} 31... Rf6 {[%clk 0:00:23.2]}
32. gxf4 {[%clk 0:01:30.2]} 32... exf4 {[%clk 0:00:22.8]} 33. Rf3 {[%clk
0:01:28.7]} 33... Ne7 {[%clk 0:00:19.6]} 34. Rcf1 {[%clk 0:01:26.7]} 34... Ng6
{[%clk 0:00:20.3]} 35. Bf5 {[%clk 0:01:26]} 35... Raf7 {[%clk 0:00:18.6]} 36.
Bxg6 {[%clk 0:01:18.7]} 36... hxg6 {[%clk 0:00:20.5]} 37. Rh3+ {[%clk 0:01:16]}
37... Kg8 {[%clk 0:00:20.6]} 38. Kg2 {[%clk 0:01:13.4]} 38... g5 {[%clk
0:00:19.1]} 39. Kf3 {[%clk 0:01:09.2]} 39... Rh6 {[%clk 0:00:19.2]} 40. Rxh6
{[%clk 0:01:08]} 40... gxh6 {[%clk 0:00:21.1]} 41. h3 {[%clk 0:01:07.1]} 41...
Re7 {[%clk 0:00:21.3]} 42. Re1 {[%clk 0:01:06.7]} 42... Kg7 {[%clk 0:00:21.7]}
43. Kg4 {[%clk 0:01:04.3]} 43... Kg6 {[%clk 0:00:20.1]} 44. Kf3 {[%clk
0:00:59.1]} 44... Re5 {[%clk 0:00:19.6]} 45. Rg1 {[%clk 0:00:57.1]} 45... Re7
{[%clk 0:00:19.2]} 46. Re1 {[%clk 0:00:56.3]} 46... h5 {[%clk 0:00:19.1]} 47.
Rg1 {[%clk 0:00:54.5]} 47... Kf6 {[%clk 0:00:14.1]} 48. Rg2 {[%clk 0:00:51.5]}
48... Rg7 {[%clk 0:00:13]} 49. Re2 {[%clk 0:00:46.9]} 49... Ke5 {[%clk
0:00:12.5]} 50. Rd2 {[%clk 0:00:42.9]} 50... g4+ {[%clk 0:00:12.1]} 51. hxg4
{[%clk 0:00:43]} 51... hxg4+ {[%clk 0:00:14]} 52. Kf2 {[%clk 0:00:42.6]} 52...
Kxe4 {[%clk 0:00:12.9]} 53. Re2+ {[%clk 0:00:43.4]} 53... Kf5 {[%clk 0:00:13.5]}
54. Re6 {[%clk 0:00:43.2]} 54... g3+ {[%clk 0:00:12.7]} 55. Kg2 {[%clk
0:00:41.6]} 55... Kg4 {[%clk 0:00:13]} 56. Rxd6 {[%clk 0:00:34.7]} 56... f3+
{[%clk 0:00:13.8]} 57. Kg1 {[%clk 0:00:33.2]} 57... g2 {[%clk 0:00:08.8]} 58.
Kf2 {[%clk 0:00:21.5]} 58... Kf4 {[%clk 0:00:06.2]} 59. Rf6+ {[%clk 0:00:21.5]}
59... Ke4 {[%clk 0:00:06.2]} 60. Re6+ {[%clk 0:00:21.6]} 60... Kd4 {[%clk
0:00:05.5]} 61. Kg1 {[%clk 0:00:22.5]} 61... Rf7 {[%clk 0:00:03.4]} 62. d6
{[%clk 0:00:20]} 62... Kd3 {[%clk 0:00:04.7]} 63. Kf2 {[%clk 0:00:18.9]} 63...
Kd4 {[%clk 0:00:05.1]} 64. Re7 {[%clk 0:00:18.6]} 64... Rf8 {[%clk 0:00:03.2]}
65. d7 {[%clk 0:00:18.6]} 65... Rd8 {[%clk 0:00:02.6]} 66. Rg7 {[%clk
0:00:19.2]} 1

[Event "Torneo Nuevo Centro. Jornada 8"]
[Site "Chess.com"]
[Date "2020.08.07"]
[Round "9"]
[White "Hernández Tomás, Efrén"]
[Black "Conejero Martínez, Víctor"]
[Result "0-1"]
[WhiteElo "1074"]
[BlackElo "1370"]
[TimeControl "180+2"]
[EndTime "12:07:04 PDT"]
[Termination "Victoria de Camelocota20 por abandono"]

1. e4 {[%clk 0:03:01.9]} 1... c5 {[%clk 0:03:00.2]} 2. Nf3 {[%clk 0:03:02.9]}
2... Nc6 {[%clk 0:03:01.4]} 3. Bc4 {[%clk 0:03:03.7]} 3... e6 {[%clk 0:03:01.9]}
4. d3 {[%clk 0:03:03.9]} 4... d5 {[%clk 0:03:01.6]} 5. exd5 {[%clk 0:03:03.2]}
5... exd5 {[%clk 0:03:02.8]} 6. Qe2+ {[%clk 0:03:03.6]} 6... Be6 {[%clk
0:03:01.5]} 7. Bb5 {[%clk 0:02:59.6]} 7... Nf6 {[%clk 0:03:02.1]} 8. Bxc6+
{[%clk 0:03:00.6]} 8... bxc6 {[%clk 0:03:02.3]} 9. d4 {[%clk 0:03:00.7]} 9...
Bd6 {[%clk 0:02:51.5]} 10. dxc5 {[%clk 0:03:00.4]} 10... Bxc5 {[%clk 0:02:52.5]}
11. O-O {[%clk 0:02:59.5]} 11... O-O {[%clk 0:02:52.1]} 12. Ng5 {[%clk
0:02:59.3]} 12... Ng4 {[%clk 0:02:40.8]} 13. Nxe6 {[%clk 0:02:55.9]} 13... Qe8
{[%clk 0:02:21.7]} 14. Nc7 {[%clk 0:02:55.4]} 14... Qxe2 {[%clk 0:02:21.5]} 15.
Nxa8 {[%clk 0:02:54.9]} 15... Nxf2 {[%clk 0:02:19.4]} 0

[Event "Torneo Nuevo Centro. Jornada 8"]
[Site "Chess.com"]
[Date "2020.08.07"]
[Round "9"]
[White "Fitzpatrick Dimas, Kevin"]
[Black "Rabbani Perez, Oumaima "]
[Result "0-1"]
[WhiteElo "866"]
[BlackElo "636"]
[TimeControl "180+2"]
[EndTime "12:08:04 PDT"]
[Termination "Victoria de OumaimaMaria por abandono"]

1. e4 {[%clk 0:03:01.9]} 1... e6 {[%clk 0:02:59.7]} 2. c4 {[%clk 0:02:54.2]}
2... Bc5 {[%clk 0:02:57.7]} 3. Nf3 {[%clk 0:02:54.1]} 3... Nf6 {[%clk
0:02:54.2]} 4. d4 {[%clk 0:02:51.6]} 4... Bb4+ {[%clk 0:02:51.5]} 5. Nbd2 {[%clk
0:02:50.4]} 5... Ng4 {[%clk 0:02:48.8]} 6. Ne5 {[%clk 0:02:45.6]} 6... O-O
{[%clk 0:02:45]} 7. Nxg4 {[%clk 0:02:45.6]} 7... h6 {[%clk 0:02:42.7]} 8. c5
{[%clk 0:02:44.5]} 8... Nc6 {[%clk 0:02:34.4]} 9. a3 {[%clk 0:02:29.8]} 9...
Bxd2+ {[%clk 0:02:30.4]} 10. Qxd2 {[%clk 0:02:29]} 10... Qh4 {[%clk 0:02:21.7]}
11. g3 {[%clk 0:02:28.9]} 11... Qxg4 {[%clk 0:02:20.7]} 12. Be2 {[%clk
0:02:28.7]} 12... Qxe4 {[%clk 0:02:16.3]} 13. f3 {[%clk 0:02:27.8]} 13... Qd5
{[%clk 0:02:06]} 14. Bd3 {[%clk 0:02:18.1]} 14... Nxd4 {[%clk 0:02:03.9]} 15.
Rf1 {[%clk 0:02:12.1]} 15... Nxf3+ {[%clk 0:02:02.6]} 0

[Event "Torneo Nuevo Centro. Jornada 8"]
[Site "Chess.com"]
[Date "2020.08.07"]
[Round "9"]
[White "Aymerich Rosell, Pablo"]
[Black "Sos Andreu, Eric"]
[Result "0-1"]
[WhiteElo "1965"]
[BlackElo "2516"]
[TimeControl "180+2"]
[EndTime "12:09:27 PDT"]
[Termination "Victoria de ericovski por abandono"]

1. e4 {[%clk 0:03:01.9]} 1... c6 {[%clk 0:03:00.9]} 2. d4 {[%clk 0:03:01.5]}
2... d5 {[%clk 0:02:57.3]} 3. e5 {[%clk 0:03:02.3]} 3... Bf5 {[%clk 0:02:58.5]}
4. Nf3 {[%clk 0:03:01.1]} 4... e6 {[%clk 0:02:59.3]} 5. Be2 {[%clk 0:03:02.2]}
5... c5 {[%clk 0:03:00.7]} 6. Be3 {[%clk 0:03:01.3]} 6... cxd4 {[%clk
0:03:01.9]} 7. Nxd4 {[%clk 0:03:02.3]} 7... Ne7 {[%clk 0:03:02.5]} 8. Bb5+
{[%clk 0:02:55.1]} 8... Nbc6 {[%clk 0:03:02.3]} 9. O-O {[%clk 0:02:46.6]} 9...
a6 {[%clk 0:02:56.6]} 10. Bxc6+ {[%clk 0:02:43.4]} 10... Nxc6 {[%clk 0:02:57.7]}
11. Nxf5 {[%clk 0:02:38]} 11... exf5 {[%clk 0:02:59.6]} 12. f4 {[%clk
0:02:19.9]} 12... d4 {[%clk 0:02:59.2]} 13. Bf2 {[%clk 0:02:20.1]} 13... Bc5
{[%clk 0:03:00.2]} 14. Nd2 {[%clk 0:02:19.9]} 14... O-O {[%clk 0:03:00.9]} 15.
Qh5 {[%clk 0:02:10]} 15... g6 {[%clk 0:03:01]} 16. Qh6 {[%clk 0:02:08.3]} 16...
f6 {[%clk 0:03:01.9]} 17. Bh4 {[%clk 0:02:03.9]} 17... Be7 {[%clk 0:02:59.9]}
18. e6 {[%clk 0:01:55.9]} 18... Re8 {[%clk 0:02:54.1]} 19. Rae1 {[%clk
0:01:56.2]} 19... Bf8 {[%clk 0:02:54.2]} 20. Bxf6 {[%clk 0:01:21]} 20... Bxh6
{[%clk 0:02:53.5]} 21. Bxd8 {[%clk 0:01:21.9]} 21... Raxd8 {[%clk 0:02:55]} 22.
Nc4 {[%clk 0:01:21.5]} 22... b5 {[%clk 0:02:53.7]} 23. Nb6 {[%clk 0:01:22.1]}
23... Rd6 {[%clk 0:02:52.8]} 24. Nd7 {[%clk 0:01:22.8]} 24... Rexe6 {[%clk
0:02:50.6]} 25. Nc5 {[%clk 0:01:19.9]} 25... Rxe1 {[%clk 0:02:49.7]} 26. Rxe1
{[%clk 0:01:21.1]} 26... Bxf4 {[%clk 0:02:50.1]} 27. Nxa6 {[%clk 0:01:18]} 27...
Be3+ {[%clk 0:02:50.3]} 28. Kh1 {[%clk 0:01:18.2]} 28... Ne5 {[%clk 0:02:49.8]}
29. Nc5 {[%clk 0:01:16.4]} 29... Nc4 {[%clk 0:02:47.7]} 30. b3 {[%clk
0:01:14.5]} 30... Na3 {[%clk 0:02:47.9]} 0

[Event "Torneo Nuevo Centro. Jornada 8"]
[Site "Chess.com"]
[Date "2020.08.07"]
[Round "9"]
[White "Gutierrez Marco, Dario"]
[Black "Bascuñana Sánchez, Pablo"]
[Result "0-1"]
[WhiteElo "1805"]
[BlackElo "1682"]
[TimeControl "180+2"]
[EndTime "12:09:37 PDT"]
[Termination "Victoria de Pabasan2010 por abandono"]

1. e4 {[%clk 0:03:01.9]} 1... c5 {[%clk 0:03:00.1]} 2. Nc3 {[%clk 0:03:03]} 2...
g6 {[%clk 0:02:59.2]} 3. Bc4 {[%clk 0:03:04.3]} 3... Nc6 {[%clk 0:02:58.8]} 4.
h4 {[%clk 0:03:04.4]} 4... Bg7 {[%clk 0:02:58.5]} 5. h5 {[%clk 0:03:05.3]} 5...
e6 {[%clk 0:02:58]} 6. d3 {[%clk 0:03:01.3]} 6... Nge7 {[%clk 0:02:46.7]} 7. Be3
{[%clk 0:02:57]} 7... d6 {[%clk 0:02:45.1]} 8. a3 {[%clk 0:02:56.6]} 8... O-O
{[%clk 0:02:45]} 9. Qd2 {[%clk 0:02:57.9]} 9... b6 {[%clk 0:02:39.7]} 10. Bh6
{[%clk 0:02:58.2]} 10... d5 {[%clk 0:02:38]} 11. Ba2 {[%clk 0:02:51]} 11... dxe4
{[%clk 0:02:30.2]} 12. Nxe4 {[%clk 0:02:47.6]} 12... Bxb2 {[%clk 0:02:22.7]} 13.
Rb1 {[%clk 0:02:12.2]} 13... Bg7 {[%clk 0:02:21.1]} 14. Bxg7 {[%clk 0:02:13.4]}
14... Kxg7 {[%clk 0:02:21.8]} 15. hxg6 {[%clk 0:02:14.9]} 15... Nf5 {[%clk
0:01:56.7]} 16. gxh7 {[%clk 0:01:38.6]} 16... Rh8 {[%clk 0:01:55.1]} 17. g4
{[%clk 0:01:24.4]} 17... Nh4 {[%clk 0:01:52.1]} 18. Qf4 {[%clk 0:01:08.1]} 18...
Ng2+ {[%clk 0:01:48.6]} 19. Kd1 {[%clk 0:01:07.4]} 19... Nxf4 {[%clk 0:01:49.1]}
0

[Event "Torneo Nuevo Centro. Jornada 8"]
[Site "Chess.com"]
[Date "2020.08.07"]
[Round "9"]
[White "Serrano Requena, Guillem"]
[Black "Grigorev, Artur "]
[Result "1-0"]
[WhiteElo "1318"]
[BlackElo "977"]
[TimeControl "180+2"]
[EndTime "12:10:11 PDT"]
[Termination "Victoria de Guily351 por abandono"]

1. d4 {[%clk 0:03:01.9]} 1... d5 {[%clk 0:02:59]} 2. Nf3 {[%clk 0:03:02.6]} 2...
Nc6 {[%clk 0:02:58.9]} 3. c4 {[%clk 0:03:03.4]} 3... e6 {[%clk 0:02:57.7]} 4.
cxd5 {[%clk 0:03:03.9]} 4... exd5 {[%clk 0:02:58.3]} 5. Nc3 {[%clk 0:03:04.1]}
5... Bg4 {[%clk 0:02:51.7]} 6. e3 {[%clk 0:02:58]} 6... Bb4 {[%clk 0:02:41.6]}
7. Be2 {[%clk 0:02:58.2]} 7... Nf6 {[%clk 0:02:40.6]} 8. O-O {[%clk 0:02:58.3]}
8... O-O {[%clk 0:02:37.5]} 9. a3 {[%clk 0:02:55.7]} 9... Bxc3 {[%clk
0:02:34.3]} 10. bxc3 {[%clk 0:02:56.4]} 10... Ne4 {[%clk 0:02:31.7]} 11. Bb2
{[%clk 0:02:54]} 11... Qf6 {[%clk 0:02:20.4]} 12. c4 {[%clk 0:02:51.7]} 12...
Qg6 {[%clk 0:02:18.6]} 13. cxd5 {[%clk 0:02:29.4]} 13... Bh3 {[%clk 0:02:13.3]}
14. Nh4 {[%clk 0:02:30.1]} 14... Qg5 {[%clk 0:02:02.3]} 15. Bf3 {[%clk
0:02:20.4]} 15... Qxh4 {[%clk 0:01:49.5]} 16. gxh3 {[%clk 0:02:20.4]} 16... Ng5
{[%clk 0:01:20.5]} 17. dxc6 {[%clk 0:02:16.4]} 17... Nxf3+ {[%clk 0:01:20.2]}
18. Qxf3 {[%clk 0:02:16.8]} 18... Qg5+ {[%clk 0:01:16.7]} 19. Kh1 {[%clk
0:02:17.2]} 19... bxc6 {[%clk 0:01:15.8]} 20. Rg1 {[%clk 0:02:17.7]} 20... Qb5
{[%clk 0:01:10.7]} 21. Qg4 {[%clk 0:02:09.9]} 21... g6 {[%clk 0:01:09.3]} 22.
Rab1 {[%clk 0:02:06.9]} 22... Qd5+ {[%clk 0:00:59.1]} 23. Rg2 {[%clk 0:02:03.5]}
23... Qe4 {[%clk 0:00:54.9]} 24. Qxe4 {[%clk 0:02:03.3]} 24... f5 {[%clk
0:00:53.6]} 25. Qxc6 {[%clk 0:02:02.6]} 1

[Event "Torneo Nuevo Centro. Jornada 8"]
[Site "Chess.com"]
[Date "2020.08.07"]
[Round "9"]
[White "Montesinos Diaz, Luis"]
[Black "Pedros Viudes, Santiago"]
[Result "0-1"]
[WhiteElo "1855"]
[BlackElo "1921"]
[TimeControl "180+2"]
[EndTime "12:11:14 PDT"]
[Termination "Victoria de ElGatoKamsky por abandono"]

1. d4 {[%clk 0:03:01.9]} 1... Nf6 {[%clk 0:03:00.8]} 2. Nf3 {[%clk 0:03:01.4]}
2... d5 {[%clk 0:03:01.4]} 3. e3 {[%clk 0:02:53.8]} 3... Bf5 {[%clk 0:02:59.9]}
4. Bd3 {[%clk 0:02:53.8]} 4... Bg6 {[%clk 0:03:00.6]} 5. b3 {[%clk 0:02:54.6]}
5... e6 {[%clk 0:02:58.1]} 6. Bb2 {[%clk 0:02:55.5]} 6... Nbd7 {[%clk
0:02:59.5]} 7. c4 {[%clk 0:02:52.6]} 7... c6 {[%clk 0:03:00]} 8. Qc2 {[%clk
0:02:53.3]} 8... Bd6 {[%clk 0:02:54.5]} 9. Nbd2 {[%clk 0:02:52.2]} 9... Qe7
{[%clk 0:02:34.2]} 10. a3 {[%clk 0:02:43.8]} 10... e5 {[%clk 0:02:25.9]} 11.
dxe5 {[%clk 0:02:39.7]} 11... Nxe5 {[%clk 0:02:26.3]} 12. Nxe5 {[%clk
0:02:39.4]} 12... Bxe5 {[%clk 0:02:28.2]} 13. O-O {[%clk 0:02:33]} 13... Bxd3
{[%clk 0:02:23.2]} 14. Qxd3 {[%clk 0:02:09.6]} 14... Bxb2 {[%clk 0:02:22.7]} 15.
Rab1 {[%clk 0:02:09.5]} 15... Bxa3 {[%clk 0:02:19.6]} 16. Rfe1 {[%clk
0:02:08.4]} 16... Bb4 {[%clk 0:02:10.6]} 17. e4 {[%clk 0:02:07.7]} 17... Bxd2
{[%clk 0:02:11.3]} 18. Qxd2 {[%clk 0:02:07.7]} 18... dxe4 {[%clk 0:02:11.3]} 19.
f3 {[%clk 0:02:07.1]} 19... Qc5+ {[%clk 0:02:01]} 20. Kh1 {[%clk 0:02:07.8]}
20... O-O {[%clk 0:01:53.6]} 21. fxe4 {[%clk 0:02:07.9]} 21... Ng4 {[%clk
0:01:38.2]} 22. Rf1 {[%clk 0:02:01.7]} 22... Qe3 {[%clk 0:01:22.2]} 23. Qc2
{[%clk 0:01:51.6]} 23... Rad8 {[%clk 0:01:11.8]} 24. Rbe1 {[%clk 0:01:44.2]}
24... Rd2 {[%clk 0:01:07.4]} 25. Rxe3 {[%clk 0:01:30.9]} 25... Rxc2 {[%clk
0:01:03.9]} 26. Rg3 {[%clk 0:01:32]} 26... Ne5 {[%clk 0:00:59.1]} 27. Rg5 {[%clk
0:01:29.9]} 27... f6 {[%clk 0:00:59]} 28. Rgf5 {[%clk 0:01:29.5]} 28... Rd8
{[%clk 0:00:56.5]} 29. g4 {[%clk 0:01:29.2]} 29... Rdd2 {[%clk 0:00:49.8]} 30.
Rh5 {[%clk 0:01:29.9]} 30... Nxg4 {[%clk 0:00:47.5]} 31. Ra1 {[%clk 0:01:28.2]}
0

[Event "Torneo Nuevo Centro. Jornada 8"]
[Site "Chess.com"]
[Date "2020.08.07"]
[Round "9"]
[White "Beneyto de Ramon, Guillermo"]
[Black "Martínez Escandell, Alfonso"]
[Result "0-1"]
[WhiteElo "1654"]
[BlackElo "1827"]
[TimeControl "180+2"]
[EndTime "12:12:01 PDT"]
[Termination "Victoria de Alfonso10 por abandono"]

1. c4 {[%clk 0:03:01.5]} 1... c5 {[%clk 0:03:00.7]} 2. Nc3 {[%clk 0:03:01.9]}
2... g6 {[%clk 0:03:01.6]} 3. g3 {[%clk 0:03:03]} 3... Bg7 {[%clk 0:03:02.3]} 4.
Bg2 {[%clk 0:03:04.1]} 4... e6 {[%clk 0:03:03.3]} 5. Nf3 {[%clk 0:03:05.8]} 5...
Ne7 {[%clk 0:03:04.2]} 6. d3 {[%clk 0:03:05.9]} 6... Nbc6 {[%clk 0:03:05]} 7.
Bf4 {[%clk 0:03:06.4]} 7... O-O {[%clk 0:03:05.4]} 8. Nb5 {[%clk 0:02:58.8]}
8... e5 {[%clk 0:02:51]} 9. Be3 {[%clk 0:02:55.2]} 9... d6 {[%clk 0:02:51]} 10.
Nc3 {[%clk 0:02:54.3]} 10... Nf5 {[%clk 0:02:49.9]} 11. Bg5 {[%clk 0:02:49.7]}
11... f6 {[%clk 0:02:43.9]} 12. Bd2 {[%clk 0:02:49.5]} 12... Nfd4 {[%clk
0:02:42.9]} 13. Nxd4 {[%clk 0:02:50.1]} 13... Nxd4 {[%clk 0:02:42.8]} 14. O-O
{[%clk 0:02:48.5]} 14... Rb8 {[%clk 0:02:41.8]} 15. e3 {[%clk 0:02:49.1]} 15...
Ne6 {[%clk 0:02:41.2]} 16. Bd5 {[%clk 0:02:48.5]} 16... Kh8 {[%clk 0:02:42]} 17.
f4 {[%clk 0:02:38.5]} 17... a6 {[%clk 0:02:40.7]} 18. fxe5 {[%clk 0:02:37.4]}
18... fxe5 {[%clk 0:02:42.6]} 19. Rxf8+ {[%clk 0:02:36.7]} 19... Qxf8 {[%clk
0:02:44.5]} 20. Qf1 {[%clk 0:02:33.7]} 20... b5 {[%clk 0:02:26.2]} 21. Qxf8+
{[%clk 0:02:33]} 21... Bxf8 {[%clk 0:02:21.8]} 22. Rf1 {[%clk 0:02:31.5]} 22...
Bh6 {[%clk 0:02:07.8]} 23. Bxe6 {[%clk 0:02:26.7]} 23... Bxe6 {[%clk 0:02:08.3]}
24. Rf6 {[%clk 0:02:27]} 24... Bg8 {[%clk 0:01:52.7]} 25. cxb5 {[%clk
0:02:27.3]} 25... axb5 {[%clk 0:01:47.3]} 26. Rxd6 {[%clk 0:02:28]} 26... b4
{[%clk 0:01:48.2]} 27. Nd5 {[%clk 0:02:28.1]} 27... Bf8 {[%clk 0:01:42.6]} 28.
Rd7 {[%clk 0:02:05.3]} 28... Be6 {[%clk 0:01:41]} 29. Nf6 {[%clk 0:02:05.1]}
29... Bxd7 {[%clk 0:01:34.9]} 30. Nxd7 {[%clk 0:02:05.9]} 30... Rd8 {[%clk
0:01:35.1]} 31. Nxf8 {[%clk 0:02:05.6]} 31... Rxf8 {[%clk 0:01:33.8]} 32. Kg2
{[%clk 0:02:04.5]} 32... Rd8 {[%clk 0:01:33.6]} 33. d4 {[%clk 0:01:56.6]} 33...
exd4 {[%clk 0:01:32.5]} 34. exd4 {[%clk 0:01:57.5]} 34... Rxd4 {[%clk
0:01:32.9]} 35. Be3 {[%clk 0:01:54.4]} 35... Rd5 {[%clk 0:01:31.1]} 36. Kf3
{[%clk 0:01:55.1]} 36... c4 {[%clk 0:01:29.6]} 37. Ke4 {[%clk 0:01:55.2]} 37...
Rd7 {[%clk 0:01:30]} 38. h3 {[%clk 0:01:50.5]} 38... c3 {[%clk 0:01:30.6]} 39.
bxc3 {[%clk 0:01:50.7]} 39... bxc3 {[%clk 0:01:31.5]} 40. Bd4+ {[%clk
0:01:51.9]} 40... Kg8 {[%clk 0:01:29.3]} 41. Bxc3 {[%clk 0:01:52.5]} 41... Ra7
{[%clk 0:01:29]} 42. Kf3 {[%clk 0:01:48.8]} 42... Ra3 {[%clk 0:01:26.6]} 43. Kg4
{[%clk 0:01:49.7]} 43... Rxc3 {[%clk 0:01:24.7]} 44. a4 {[%clk 0:01:51.4]} 44...
Ra3 {[%clk 0:01:25.4]} 45. a5 {[%clk 0:01:53.3]} 45... Rxa5 {[%clk 0:01:26.3]}
46. h4 {[%clk 0:01:55.2]} 46... Kg7 {[%clk 0:01:27.1]} 47. Kh3 {[%clk
0:01:56.2]} 47... Kf6 {[%clk 0:01:27.9]} 48. Kg4 {[%clk 0:01:57.4]} 48... h5+
{[%clk 0:01:27.8]} 49. Kf4 {[%clk 0:01:58.4]} 49... Ra4+ {[%clk 0:01:28.3]} 50.
Kf3 {[%clk 0:01:59.9]} 50... Kf5 {[%clk 0:01:29.5]} 51. Kg2 {[%clk 0:02:01.6]}
51... Kg4 {[%clk 0:01:30.3]} 52. Kh2 {[%clk 0:02:02.7]} 52... Ra2+ {[%clk
0:01:31.1]} 53. Kh1 {[%clk 0:02:04.6]} 53... Kxg3 {[%clk 0:01:31.2]} 0

[Event "Torneo Nuevo Centro. Jornada 8"]
[Site "Chess.com"]
[Date "2020.08.07"]
[Round "9"]
[White "Carbonell Bofill, Carlos Eloy"]
[Black "Kovacevic, Slobodan"]
[Result "0-1"]
[WhiteElo "1959"]
[BlackElo "2219"]
[TimeControl "180+2"]
[EndTime "12:12:33 PDT"]
[Termination "Victoria de nikko110 por tiempo"]

1. d4 {[%clk 0:03:01.9]} 1... Nf6 {[%clk 0:02:59.1]} 2. Nf3 {[%clk 0:03:02.9]}
2... e6 {[%clk 0:02:58.4]} 3. e3 {[%clk 0:02:53.9]} 3... c5 {[%clk 0:02:58]} 4.
Bd3 {[%clk 0:02:52.4]} 4... cxd4 {[%clk 0:02:57.6]} 5. exd4 {[%clk 0:02:54.3]}
5... d6 {[%clk 0:02:57.5]} 6. O-O {[%clk 0:02:54.6]} 6... b6 {[%clk 0:02:57.7]}
7. Re1 {[%clk 0:02:55]} 7... Bb7 {[%clk 0:02:57.8]} 8. Nbd2 {[%clk 0:02:38.9]}
8... Be7 {[%clk 0:02:56.7]} 9. Ne4 {[%clk 0:02:39.8]} 9... Nbd7 {[%clk
0:02:55.7]} 10. Bf4 {[%clk 0:02:39.1]} 10... Qc7 {[%clk 0:02:54.7]} 11. c3
{[%clk 0:02:27.4]} 11... O-O {[%clk 0:02:54.1]} 12. Qc2 {[%clk 0:02:21.3]} 12...
h6 {[%clk 0:02:43.1]} 13. h3 {[%clk 0:02:19.4]} 13... a6 {[%clk 0:02:41.6]} 14.
Re2 {[%clk 0:02:18]} 14... Rfe8 {[%clk 0:02:34.5]} 15. Rae1 {[%clk 0:02:18]}
15... Nd5 {[%clk 0:02:28.8]} 16. Bh2 {[%clk 0:02:17.3]} 16... b5 {[%clk
0:02:28]} 17. a3 {[%clk 0:02:16.7]} 17... N7b6 {[%clk 0:02:19.5]} 18. Nc5 {[%clk
0:02:10.8]} 18... Bc6 {[%clk 0:02:13.9]} 19. Nd2 {[%clk 0:01:56.6]} 19... Qd8
{[%clk 0:02:07.2]} 20. Nce4 {[%clk 0:01:52.5]} 20... Qd7 {[%clk 0:02:02.2]} 21.
f4 {[%clk 0:01:38.2]} 21... Rac8 {[%clk 0:01:55.5]} 22. Nf3 {[%clk 0:01:00.8]}
22... Nc4 {[%clk 0:01:49.9]} 23. Bxc4 {[%clk 0:01:00.2]} 23... bxc4 {[%clk
0:01:48.2]} 24. f5 {[%clk 0:00:56.5]} 24... exf5 {[%clk 0:01:43.7]} 25. Nxd6
{[%clk 0:00:57.7]} 25... Bxd6 {[%clk 0:01:41.6]} 26. Rxe8+ {[%clk 0:00:59.6]}
26... Rxe8 {[%clk 0:01:40]} 27. Rxe8+ {[%clk 0:01:01.5]} 27... Qxe8 {[%clk
0:01:38.5]} 28. Bxd6 {[%clk 0:01:02.9]} 28... Qe3+ {[%clk 0:01:32.6]} 29. Qf2
{[%clk 0:01:01.5]} 29... Qc1+ {[%clk 0:01:30.9]} 30. Kh2 {[%clk 0:01:01.9]}
30... Ne3 {[%clk 0:01:27.8]} 31. Ne5 {[%clk 0:00:24]} 31... Be4 {[%clk
0:01:25.5]} 32. Nf3 {[%clk 0:00:03.9]} 32... Nf1+ {[%clk 0:01:16.9]} 33. Kg1
{[%clk 0:00:02.5]} 33... Ng3+ {[%clk 0:01:09.7]} 34. Kh2 {[%clk 0:00:03]} 34...
Nh5 {[%clk 0:01:05.7]} 0